fUSD/lending_fUSD_20240212
["ID","MTS","AMOUNT","RATE_DAILY","PERIOD"]
[313773311,1707711616464,1235.38,0.00022996,2]
[313773312,1707711617678,500.0,0.00022996,2]
[313773313,1707711619507,3384.59,0.00022997,2]
[313773314,1707711620648,155.36,0.00020214,2]
[313773315,1707711621186,998.37,0.00022996,2]
[313773316,1707711621425,500.0,0.00022996,2]
[313773317,1707711622701,1995.75,0.00022996,2]
[313773318,1707711623301,500.0,0.00022999,2]
[313773319,1707711623366,520.694101,0.00022998,2]
[313773320,1707711623520,500.0,0.00022996,2]
[313773321,1707711624259,532.74,0.00022996,2]
[313773322,1707711624294,500.0,0.00022996,2]
[313773323,1707711624476,500.0,0.00022996,2]
[313773324,1707711625244,500.0,0.00022997,2]
[313773325,1707711625741,500.0,0.00022998,2]
[313773326,1707711625784,1408.44,0.00022996,2]
[313773327,1707711625918,500.0,0.00022996,2]
[313773328,1707711626616,500.0,0.00022999,2]
[313773329,1707711627282,500.0,0.00022996,2]
[313773330,1707711627565,541.6591777,0.00022999,2]
[313773331,1707711627661,500.0,0.00022996,2]
[313773332,1707711627704,616.6,0.00022998,2]
[313773333,1707711628007,500.0,0.00022996,2]
[313773334,1707711629693,1076.66,0.00022996,2]
[313773335,1707711633203,500.0,0.00022996,2]
[313773336,1707711634036,2875.56,0.00022996,2]
[313773337,1707711634726,528.94389544,0.00022998,2]
[313773338,1707711636135,1194.9,0.00022998,2]
[313773339,1707711637217,601.47,0.00022996,2]
[313773340,1707711637249,500.0,0.00022996,2]
[313773341,1707711637405,522.24,0.00022997,2]
[313773342,1707711637508,500.0,0.00022998,2]
[313773343,1707711638740,500.0,0.00022996,2]
[313773344,1707711639644,530.50296761,0.00022999,2]
[313773345,1707711639701,500.0,0.00022996,2]
[313773346,1707711640182,500.0,0.00022998,2]
[313773347,1707711640615,630.31,0.00022998,2]
[313773348,1707711640886,3801.69,0.00022997,2]
[313773349,1707711641096,354.4,0.00022545,2]
[313773350,1707711641415,500.0,0.00022996,2]
[313773351,1707711641611,500.0,0.00022996,2]
[313773352,1707711642860,500.0,0.00022999,2]
[313773353,1707711644957,3223.24,0.00022996,2]
[313773354,1707711645188,587.59,0.00022996,2]
[313773355,1707711647091,396.97629792,0.00022996,2]
[313773356,1707711647851,539.1838456,0.00022996,2]
[313773357,1707711647941,500.0,0.00022998,2]
[313773358,1707711647979,4505.03,0.00022997,2]
[313773359,1707711648699,2391.28,0.00022997,2]
[313773360,1707711650072,500.0,0.00022996,2]
[313773361,1707711650209,514.17871387,0.00022996,2]
[313773362,1707711651171,634.14,0.00022998,2]
[313773363,1707711651481,1399.25,0.00022996,2]
[313773364,1707711652019,1109.93,0.00022996,2]
[313773365,1707711652404,566.79,0.00022996,2]
[313773366,1707711652575,500.0,0.00022998,2]
[313773367,1707711652844,500.0,0.00022996,2]
[313773368,1707711653589,536.53638924,0.00022996,2]
[313773369,1707711653988,2181.28,0.00022996,2]
[313773370,1707711655841,500.0,0.00022998,2]
[313773371,1707711655937,1557.81,0.00022996,2]
[313773372,1707711657499,1143.08,0.00022997,2]
[313773373,1707711657623,500.0,0.00022997,2]
[313773374,1707711657947,500.0,0.00022996,2]
[313773375,1707711659778,500.0,0.00022997,2]
[313773376,1707711660927,500.0,0.00022996,2]
[313773377,1707711661240,614.26317283,0.00022998,2]
[313773378,1707711661323,500.0,0.00022999,2]
[313773379,1707711663194,500.0,0.00022996,2]
[313773380,1707711663667,714.08,0.00022998,2]
[313773381,1707711664563,226.50536222,0.00022999,2]
[313773382,1707711664604,500.0,0.00022996,2]
[313773383,1707711664959,500.0,0.00022996,2]
[313773384,1707711666155,1522.44,0.00022996,2]
[313773385,1707711666539,2098.87,0.00022997,2]
[313773386,1707711666967,841.64,0.00022996,2]
[313773387,1707711669163,500.0,0.00022996,2]
[313773388,1707711670294,8760.85,0.00022997,2]
[313773389,1707711670970,500.0,0.00022998,2]
[313773390,1707711672187,500.0,0.00022996,2]
[313773391,1707711673759,500.0,0.00022998,2]
[313773392,1707711674391,500.0,0.00022996,2]
[313773393,1707711674498,845.37,0.00022997,2]
[313773394,1707711675448,2277.64,0.00022996,2]
[313773395,1707711675896,510.37,0.00022999,2]
[313773396,1707711675947,580.23,0.00022996,2]
[313773397,1707711676142,508.47,0.00022998,2]
[313773398,1707711677077,500.0,0.00022996,2]
[313773399,1707711677226,1285.43,0.00022996,2]
[313773400,1707711678433,500.0,0.00022996,2]
[313773401,1707711679625,500.0,0.00022997,2]
[313773402,1707711679660,500.0,0.00022996,2]
[313773403,1707711679704,500.0,0.00022999,2]
[313773404,1707711680104,500.0,0.00022996,2]
[313773405,1707711680941,1362.28,0.00022996,2]
[313773406,1707711681321,2173.45,0.00022996,2]
[313773407,1707711683273,500.0,0.00022999,2]
[313773408,1707711683876,500.0,0.00022997,2]
[313773409,1707711684200,547.67,0.00022999,2]
[313773410,1707711684633,531.78946821,0.00022996,2]
[313773411,1707711684904,500.0,0.00022996,2]
[313773412,1707711684954,500.0,0.00022998,2]
[313773413,1707711686841,500.0,0.00022996,2]
[313773414,1707711688168,676.38,0.00022996,2]
[313773415,1707711688888,500.0,0.00022996,2]
[313773416,1707711690127,500.0,0.00022996,2]
[313773417,1707711690335,402.68507272,0.00022996,2]
[313773418,1707711690657,1304.49,0.00022998,2]
[313773419,1707711691354,500.0,0.00022996,2]
[313773420,1707711691808,569.76,0.00022998,2]
[313773421,1707711693104,500.0,0.00022996,2]
[313773422,1707711693612,2772.08,0.00022997,2]
[313773423,1707711695202,539.59806307,0.00022996,2]
[313773424,1707711696268,500.0,0.00022996,2]
[313773425,1707711696438,500.0,0.00022996,2]
[313773426,1707711696639,703.02,0.00022997,2]
[313773427,1707711697228,5546.12964389,0.00023,2]
[313773428,1707711697287,500.0,0.00022996,2]
[313773429,1707711697900,500.0,0.00022999,2]
[313773430,1707711698605,500.0,0.00022996,2]
[313773431,1707711699900,1391.54,0.00022996,2]
[313773432,1707711700022,500.0,0.00022996,2]
[313773433,1707711700530,728.8,0.00022998,2]
[313773434,1707711702682,2085.7,0.00022997,2]
[313773435,1707711702737,1739.16,0.00022996,2]
[313773436,1707711702907,500.0,0.00022999,2]
[313773437,1707711704055,672.12,0.00022996,2]
[313773438,1707711705703,10553.48847873,0.00023,2]
[313773439,1707711706576,572.90774529,0.00022996,2]
[313773440,1707711706702,323.87457389,0.00022996,2]
[313773441,1707711708008,500.0,0.00022997,2]
[313773442,1707711709023,500.0,0.00022996,2]
[313773443,1707711709110,500.0,0.00022998,2]
[313773444,1707711710830,500.0,0.00022996,2]
[313773445,1707711710966,500.0,0.00022996,2]
[313773446,1707711711212,666.14,0.00022997,2]
[313773447,1707711711495,500.0,0.00022996,2]
[313773448,1707711712012,157.34,0.00023,2]
[313773449,1707711713727,500.0,0.00022999,2]
[313773450,1707711714270,500.0,0.00022996,2]
[313773451,1707711714774,500.0,0.00022996,2]
[313773452,1707711714812,500.0,0.00022996,2]
[313773453,1707711716771,500.0,0.00022996,2]
[313773454,1707711717201,2580.7,0.00022996,2]
[313773455,1707711717589,500.0,0.00022996,2]
[313773456,1707711717962,2393.08,0.00022996,2]
[313773457,1707711718282,5343.1599671,0.00022997,2]
[313773458,1707711719432,888.86,0.00022998,2]
[313773459,1707711719540,500.0,0.00022996,2]
[313773460,1707711719623,500.0,0.00022996,2]
[313773461,1707711720783,500.0,0.00022996,2]
[313773462,1707711721285,500.0,0.00022999,2]
[313773463,1707711724570,500.0,0.00022999,2]
[313773464,1707711724786,477.33302729,0.00022996,2]
[313773465,1707711725754,500.0,0.00022996,2]
[313773466,1707711726908,500.0,0.00022996,2]
[313773467,1707711727354,468.40588753,0.00022998,2]
[313773468,1707711727792,3054.28,0.00022996,2]
[313773469,1707711727848,500.0,0.00022996,2]
[313773470,1707711728179,500.0,0.00022996,2]
[313773471,1707711730470,562.58,0.00022996,2]
[313773472,1707711731291,500.0,0.00022996,2]
[313773473,1707711731335,526.63,0.00022996,2]
[313773474,1707711733087,530.47,0.00022998,2]
[313773475,1707711733172,861.8,0.00022996,2]
[313773476,1707711734493,300.0,0.00022999,2]
[313773477,1707711734751,300.0,0.00022999,2]
[313773478,1707711735055,300.0,0.00022999,2]
[313773479,1707711735390,217.49725874,0.00022999,2]
[313773480,1707711736610,4446.31,0.00022997,2]
[313773481,1707711736808,500.0,0.00022999,2]
[313773482,1707711737711,536.85090818,0.00022996,2]
[313773483,1707711739016,1215.33,0.00022996,2]
[313773484,1707711739150,153.17345926,0.00022996,2]
[313773485,1707711739454,3947.3,0.00022996,2]
[313773486,1707711741736,644.08,0.00022999,2]
[313773487,1707711742247,500.0,0.00022996,2]
[313773488,1707711742326,500.0,0.00022997,2]
[313773489,1707711742607,500.0,0.00022996,2]
[313773490,1707711743549,500.0,0.00022996,2]
[313773491,1707711746100,1323.96,0.00022997,2]
[313773492,1707711746580,500.0,0.00022996,2]
[313773493,1707711747120,644.69,0.00022998,2]
[313773494,1707711749518,500.0,0.00022996,2]
[313773495,1707711749782,3677.74,0.00022996,2]
[313773496,1707711749936,500.0,0.00022996,2]
[313773497,1707711749974,712.62,0.00022996,2]
[313773498,1707711750813,500.0,0.00022999,2]
[313773499,1707711751407,1307.14,0.00022996,2]
[313773500,1707711752210,500.0,0.00022998,2]
[313773501,1707711753344,500.0,0.00022999,2]
[313773502,1707711754138,500.0,0.00022996,2]
[313773503,1707711755978,516.63,0.00022997,2]
[313773504,1707711756085,5265.29,0.00022996,2]
[313773505,1707711756810,164.34,0.00022789,2]
[313773506,1707711756855,183.47,0.00022125,10]
[313773507,1707711757065,183.47,0.00022848,10]
[313773508,1707711757100,758.58,0.00022998,2]
[313773509,1707711757238,500.0,0.00022996,2]
[313773510,1707711758156,500.0,0.00022996,2]
[313773511,1707711758487,500.0,0.00022996,2]
[313773512,1707711759010,745.04,0.00022996,2]
[313773513,1707711759224,1511.4,0.00022996,2]
[313773514,1707711759624,500.0,0.00022997,2]
[313773515,1707711759674,673.92,0.00022998,2]
[313773516,1707711762121,854.58,0.00022997,2]
[313773517,1707711765741,500.0,0.00022996,2]
[313773518,1707711765837,598.3,0.00022996,2]
[313773519,1707711768337,707.41,0.00022997,2]
[313773520,1707711768672,1142.04,0.00022998,2]
[313773521,1707711769345,545.22,0.00022996,2]
[313773522,1707711771108,1527.99,0.00022996,2]
[313773523,1707711771251,500.0,0.00022996,2]
[313773524,1707711772450,540.88164534,0.00022996,2]
[313773525,1707711773312,895.54,0.00022997,2]
[313773526,1707711775547,540.02,0.00022996,2]
[313773527,1707711775627,500.0,0.00022996,2]
[313773528,1707711775941,755.42,0.00022996,2]
[313773529,1707711776920,500.0,0.00022996,2]
[313773530,1707711777990,178.46,0.00022132,2]
[313773531,1707711778173,500.0,0.00022996,2]
[313773532,1707711778801,547.6,0.00022999,2]
[313773533,1707711779254,974.6,0.00022996,2]
[313773534,1707711779376,1073.0,0.00022998,2]
[313773535,1707711779408,500.0,0.00022997,2]
[313773536,1707711779607,548.59,0.00022996,2]
[313773537,1707711779795,7348.0536,0.00022977,2]
[313773538,1707711780080,500.0,0.00022996,2]
[313773539,1707711783070,5619.35,0.00022996,2]
[313773540,1707711783777,617.85,0.00022997,2]
[313773541,1707711785356,742.3,0.00022996,2]
[313773542,1707711785698,305.27218497,0.00023,30]
[313773543,1707711786030,803.87,0.00022996,2]
[313773544,1707711787563,500.0,0.00022999,2]
[313773545,1707711787992,500.0,0.00022996,2]
[313773546,1707711788555,1438.58,0.00022996,2]
[313773547,1707711789230,523.22558169,0.00022998,2]
[313773548,1707711791353,500.0,0.00022998,2]
[313773549,1707711792904,431.41,0.00022127,2]
[313773550,1707711792945,500.0,0.00022996,2]
[313773551,1707711794976,3243.57,0.00022997,2]
[313773552,1707711795567,500.0,0.00022998,2]
[313773553,1707711795931,500.0,0.00022997,2]
[313773554,1707711796828,500.0,0.00022996,2]
[313773555,1707711796870,1097.09,0.00022996,2]
[313773556,1707711796906,500.0,0.00022999,2]
[313773557,1707711796993,501.58,0.00022996,2]
[313773558,1707711799928,500.0,0.00022998,2]
[313773559,1707711800068,548.44662177,0.00022999,2]
[313773560,1707711801935,500.0,0.00022996,2]
[313773561,1707711802712,658.21,0.00022996,2]
[313773562,1707711802879,500.0,0.00022999,2]
[313773563,1707711803302,558.72087147,0.00022996,2]
[313773564,1707711804851,1348.72,0.00022996,2]
[313773565,1707711804883,500.0,0.00022998,2]
[313773566,1707711805430,500.0,0.00022996,2]
[313773567,1707711805858,539.64,0.00022996,2]
[313773568,1707711808804,500.0,0.00022998,2]
[313773569,1707711809224,400.49602888,0.00022996,2]
[313773570,1707711809479,500.0,0.00022996,2]
[313773571,1707711811487,500.0,0.00022999,2]
[313773572,1707711811783,500.0,0.00022998,2]
[313773573,1707711812099,500.0,0.00022996,2]
[313773574,1707711812404,503.39,0.00022996,2]
[313773575,1707711812921,675.33,0.00022999,2]
[313773576,1707711814467,3702.17,0.00022997,2]
[313773577,1707711815366,500.0,0.00022996,2]
[313773578,1707711815415,546.56191549,0.00022998,2]
[313773579,1707711816098,3643.28,0.00022997,2]
[313773580,1707711816341,500.0,0.00022996,2]
[313773581,1707711817420,738.66,0.00022996,2]
[313773582,1707711817570,500.0,0.00022998,2]
[313773583,1707711817734,500.0,0.00022996,2]
[313773584,1707711818620,194.7597,0.00022976,2]
[313773585,1707711820313,500.0,0.00022996,2]
[313773586,1707711822826,528.02365391,0.00022998,2]
[313773587,1707711823032,1811.75,0.00022997,2]
[313773588,1707711823866,500.0,0.00022999,2]
[313773589,1707711826105,1838.55,0.00022996,2]
[313773590,1707711826688,834.37,0.00022999,2]
[313773591,1707711827130,1442.57,0.00022996,2]
[313773592,1707711827524,500.0,0.00022996,2]
[313773593,1707711827732,728.36,0.00022996,2]
[313773594,1707711828604,500.0,0.00022998,2]
[313773595,1707711828636,500.0,0.00022996,2]
[313773596,1707711828673,500.0,0.00022996,2]
[313773597,1707711831484,500.0,0.00022996,2]
[313773598,1707711831891,513.97,0.00022996,2]
[313773599,1707711832086,500.0,0.00022999,2]
[313773600,1707711832356,500.0,0.00022998,2]
[313773601,1707711832967,1170.32,0.00022996,2]
[313773602,1707711833027,4594.83096539,0.00022995,2]
[313773603,1707711834832,500.0,0.00022997,2]
[313773604,1707711835337,150.0,0.00023,2]
[313773605,1707711835557,737.0,0.00022996,2]
[313773606,1707711837984,544.24186324,0.00022998,2]
[313773607,1707711838974,6060.31,0.00022996,2]
[313773608,1707711839009,226.70449955,0.00022996,2]
[313773609,1707711839182,500.0,0.00022999,2]
[313773610,1707711839893,500.0,0.00022999,2]
[313773611,1707711840089,669.05,0.00022996,2]
[313773612,1707711840365,500.0,0.00022998,2]
[313773613,1707711841917,2011.42,0.00022997,2]
[313773614,1707711842291,500.0,0.00022999,2]
[313773615,1707711842613,1123.9,0.00022996,2]
[313773616,1707711843195,301.92825162,0.00022995,2]
[313773617,1707711843541,500.0,0.00022996,2]
[313773618,1707711843655,500.0,0.00022997,2]
[313773619,1707711847643,314.87820528,0.00022976,2]
[313773620,1707711847677,500.0,0.00022998,2]
[313773621,1707711847709,500.0,0.00022996,2]
[313773622,1707711849361,500.0,0.00022996,2]
[313773623,1707711849545,500.0,0.00022996,2]
[313773624,1707711849677,500.0,0.00022998,2]
[313773625,1707711849831,500.0,0.00022999,2]
[313773626,1707711849979,992.52,0.00022996,2]
[313773627,1707711850395,582.73,0.00022996,2]
[313773628,1707711852348,4426.04,0.00022996,2]
[313773629,1707711852752,500.0,0.00022996,2]
[313773630,1707711853290,2626.02,0.00022997,2]
[313773631,1707711854821,684.57,0.00022996,2]
[313773632,1707711854889,500.0,0.00022996,2]
[313773633,1707711855702,500.0,0.00022999,2]
[313773634,1707711855982,164.19922834,0.00022975,2]
[313773635,1707711856181,500.0,0.00022998,2]
[313773636,1707711856224,1136.3826168,0.00022997,2]
[313773637,1707711857123,500.0,0.00022996,2]
[313773638,1707711860485,500.0,0.00022998,2]
[313773639,1707711860801,500.0,0.00022996,2]
[313773640,1707711861146,500.0,0.00022996,2]
[313773641,1707711861754,1912.6,0.00022997,2]
[313773642,1707711864087,500.0,0.00022996,2]
[313773643,1707711864283,643.35,0.00022999,2]
[313773644,1707711864982,500.0,0.00022996,2]
[313773645,1707711867234,935.03,0.00022996,2]
[313773646,1707711867268,500.0,0.00022996,2]
[313773647,1707711869668,500.0,0.00022996,2]
[313773648,1707711869900,500.0,0.00022996,2]
[313773649,1707711871191,576.41,0.00022997,2]
[313773650,1707711871750,500.0,0.00022998,2]
[313773651,1707711873006,500.0,0.00022999,2]
[313773652,1707711874211,633.96,0.00022996,2]
[313773653,1707711874727,500.0,0.00022996,2]
[313773654,1707711875036,500.0,0.00022996,2]
[313773655,1707711876974,500.0,0.00022996,2]
[313773656,1707711878226,500.48,0.00022996,2]
[313773657,1707711878295,500.0,0.00022999,2]
[313773658,1707711878494,500.0,0.00022996,2]
[313773659,1707711880326,500.0,0.00022996,2]
[313773660,1707711880583,554.47374827,0.00022996,2]
[313773661,1707711881519,500.0,0.00022998,2]
[313773662,1707711882648,500.0,0.00022996,2]
[313773663,1707711883068,2239.16,0.00022996,2]
[313773664,1707711883177,500.0,0.00022999,2]
[313773665,1707711884329,500.0,0.00022996,2]
[313773666,1707711886754,2449.33,0.00022996,2]
[313773667,1707711886809,4598.87,0.00022996,2]
[313773668,1707711887075,543.17,0.00022997,2]
[313773669,1707711888772,592.56259352,0.00022996,2]
[313773670,1707711889446,500.0,0.00022998,2]
[313773671,1707711893101,500.0,0.00022996,2]
[313773672,1707711893208,583.8,0.00022996,2]
[313773673,1707711893287,500.0,0.00022996,2]
[313773674,1707711895482,758.08,0.00022115,2]
[313773675,1707711895724,500.0,0.00022999,2]
[313773676,1707711895755,500.0,0.00022996,2]
[313773677,1707711895798,500.0,0.00022996,2]
[313773678,1707711896364,504.14872938,0.00022996,2]
[313773679,1707711898681,500.0,0.00022996,2]
[313773680,1707711899049,500.0,0.00022998,2]
[313773681,1707711899840,19729.18,0.00022996,2]
[313773682,1707711901364,500.0,0.00022996,2]
[313773683,1707711902271,500.0,0.00022998,2]
[313773684,1707711902984,500.0,0.00022997,2]
[313773685,1707711903761,500.0,0.00022996,2]
[313773686,1707711904867,500.0,0.00022998,2]
[313773687,1707711904912,2000.0,0.00023,2]
[313773688,1707711907835,518.61232324,0.00022996,2]
[313773689,1707711908802,500.0,0.00022996,2]
[313773690,1707711908903,500.0,0.00022996,2]
[313773691,1707711909050,40016.7274972,0.00022997,2]
[313773692,1707711909807,500.0,0.00022996,2]
[313773693,1707711911769,500.0,0.00022996,2]
[313773694,1707711911998,500.0,0.00022999,2]
[313773695,1707711912159,809.2,0.00022996,2]
[313773696,1707711912322,500.0,0.00022997,2]
[313773697,1707711915307,921.23,0.00022998,2]
[313773698,1707711918000,500.0,0.00022996,2]
[313773699,1707711918953,735.24,0.00022999,2]
[313773700,1707711919267,2082.89,0.00022997,2]
[313773701,1707711919647,500.0,0.00022996,2]
[313773702,1707711920052,2686.52,0.00022996,2]
[313773703,1707711922273,500.0,0.00022996,2]
[313773704,1707711925178,1241.58,0.00022996,2]
[313773705,1707711925596,545.04670212,0.00022996,2]
[313773706,1707711928495,500.0,0.00022997,2]
[313773707,1707711929525,419.93605851,0.00022996,2]
[313773708,1707711929594,2551.12,0.00022996,2]
[313773709,1707711929694,500.0,0.00022999,2]
[313773710,1707711931695,500.0,0.00022996,2]
[313773711,1707711933276,500.0,0.00022997,2]
[313773712,1707711933316,500.0,0.00022999,2]
[313773713,1707711934974,513.23,0.00022996,2]
[313773714,1707711935020,969.03,0.00022996,2]
[313773715,1707711935058,500.0,0.00022998,2]
[313773716,1707711935196,500.0,0.00022996,2]
[313773717,1707711938156,500.0,0.00022996,2]
[313773718,1707711938466,519.70524369,0.00022999,2]
[313773719,1707711940235,500.0,0.00022996,2]
[313773720,1707711940827,500.0,0.00022999,2]
[313773721,1707711941432,500.0,0.00022996,2]
[313773722,1707711943809,500.0,0.00022996,2]
[313773723,1707711944243,500.0,0.00022996,2]
[313773724,1707711944949,500.0,0.00022996,2]
[313773725,1707711946554,552.66858702,0.00022996,2]
[313773726,1707711947553,500.0,0.00022996,2]
[313773727,1707711947770,500.0,0.00022999,2]
[313773728,1707711947810,500.0,0.00022997,2]
[313773729,1707711948832,1025.38984769,0.00022996,7]
[313773730,1707711950620,500.0,0.00022997,2]
[313773731,1707711950692,500.0,0.00022996,2]
[313773732,1707711950742,514.20500138,0.00022999,2]
[313773733,1707711951195,500.0,0.00022996,2]
[313773734,1707711951455,500.0,0.00022996,2]
[313773735,1707711951928,500.0,0.00022996,2]
[313773736,1707711952688,776.03,0.00022999,2]
[313773737,1707711955783,500.0,0.00022996,2]
[313773738,1707711957115,916.83,0.00022996,2]
[313773739,1707711958689,500.0,0.00022996,2]
[313773740,1707711958805,150.0,0.00023,2]
[313773741,1707711960386,500.0,0.00022996,2]
[313773742,1707711960916,1339.801664,0.00022997,2]
[313773743,1707711961653,500.0,0.00022999,2]
[313773744,1707711963288,500.0,0.00022997,2]
[313773745,1707711964233,500.0,0.00022996,2]
[313773746,1707711966249,4261.04,0.00022996,2]
[313773747,1707711966723,500.0,0.00022996,2]
[313773748,1707711968158,825.89,0.00022997,2]
[313773749,1707711969865,515.92995372,0.00022996,2]
[313773750,1707711971291,500.0,0.00022996,2]
[313773751,1707711972148,500.0,0.00022996,2]
[313773752,1707711973500,500.0,0.00022996,2]
[313773753,1707711975080,547.22826857,0.00022996,2]
[313773754,1707711977554,500.0,0.00022996,2]
[313773755,1707711977773,500.0,0.00022996,2]
[313773756,1707711977809,500.0,0.00022997,2]
[313773757,1707711977885,2291.65,0.00022996,2]
[313773758,1707711977959,500.0,0.00022996,2]
[313773759,1707711978622,500.0,0.00022996,2]
[313773760,1707711978869,524.86530387,0.00022996,2]
[313773761,1707711980787,500.0,0.00022996,2]
[313773762,1707711983224,536.32281093,0.00022996,2]
[313773763,1707711983846,500.0,0.00022996,2]
[313773764,1707711987297,9249.2751409,0.00022997,2]
[313773765,1707711987369,500.0,0.00022996,2]
[313773766,1707711987837,1536.81,0.00022996,2]
[313773767,1707711988313,522.5,0.00022997,2]
[313773768,1707711989416,500.0,0.00022996,2]
[313773769,1707711989612,500.0,0.00022996,2]
[313773770,1707711989656,1244.6,0.00022996,2]
[313773771,1707711990776,500.0,0.00022996,2]
[313773772,1707711992332,500.0,0.00022996,2]
[313773773,1707711993637,567.94,0.00022996,2]
[313773774,1707711996902,1202.48,0.00022996,2]
[313773775,1707711997009,500.0,0.00022997,2]
[313773776,1707711998303,500.0,0.00022996,2]
[313773777,1707711999497,1344.63,0.00022996,2]
[313773778,1707712002763,711.37,0.00022997,2]
[313773779,1707712005125,523.72480952,0.00022996,2]
[313773780,1707712005491,500.0,0.00022996,2]
[313773781,1707712006426,8395.81,0.00022996,2]
[313773782,1707712007792,500.0,0.00022996,2]
[313773783,1707712008331,500.0,0.00022996,2]
[313773784,1707712009095,500.0,0.00022996,2]
[313773785,1707712012349,500.0,0.00022996,2]
[313773786,1707712013343,500.0,0.00022996,2]
[313773787,1707712014581,597.18,0.00022996,2]
[313773788,1707712015314,500.0,0.00022996,2]
[313773789,1707712015767,500.0,0.00022997,2]
[313773790,1707712017004,500.0,0.00022996,2]
[313773791,1707712019620,500.0,0.00022996,2]
[313773792,1707712021220,537.2457051,0.00022996,2]
[313773793,1707712021468,500.0,0.00022997,2]
[313773794,1707712024915,500.0,0.00022996,2]
[313773795,1707712025302,575.11050509,0.00022996,2]
[313773796,1707712025711,614.38,0.00022996,2]
[313773797,1707712026254,500.0,0.00022997,2]
[313773798,1707712027530,543.16,0.00022996,2]
[313773799,1707712029441,840.34,0.00022996,2]
[313773800,1707712031413,500.0,0.00022996,2]
[313773801,1707712036449,515.50209522,0.00022996,2]
[313773802,1707712036900,1189.52,0.00022996,2]
[313773803,1707712039104,1644.88,0.00022997,2]
[313773804,1707712041052,500.0,0.00022996,2]
[313773805,1707712042120,500.0,0.00022996,2]
[313773806,1707712043762,677.93,0.00022996,2]
[313773807,1707712045693,500.0,0.00022996,2]
[313773808,1707712047420,500.0,0.00022996,2]
[313773809,1707712048945,300.0,0.000227,8]
[313773810,1707712049892,500.0,0.00022996,2]